bitfinex/quotes_SOLUSD_20240620
["timestamp","ask_amount","ask_price","bid_price","bid_amount"]
[1718882013788,22.1628,140.91,140.83,7.1006]
[1718882013955,22.1628,140.91,140.8,17.7548]
[1718882014151,39.9046,140.91,140.82,7.101]
[1718882014357,7.0991,140.87,140.81,7.1016]
[1718882014560,7.0997,140.86,140.8,7.1021]
[1718882014785,7.0997,140.86,140.81,7.1016]
[1718882015090,22.1628,140.91,140.82,7.1011]
[1718882015091,7.0989,140.87,140.82,7.1011]
[1718882015278,7.098,140.89,140.84,7.0999]
[1718882015582,22.1628,140.91,140.85,7.0993]
[1718882015583,7.0975,140.9,140.85,7.0993]
[1718882015956,22.1628,140.91,140.81,17.7543]
[1718882016178,7.0978,140.89,140.84,7.0999]
[1718882016384,7.0974,140.9,140.85,7.0994]
[1718882016587,7.0974,140.9,140.85,7.0997]
[1718882016887,22.1628,140.91,140.81,17.7543]
[1718882017179,22.1628,140.91,140.87,7.0983]
[1718882017356,22.1628,140.91,140.87,7.0985]
[1718882017557,22.1628,140.91,140.76,22.1628]
[1718882017889,22.1628,140.91,140.81,7.1014]
[1718882017890,7.0993,140.86,140.81,7.1014]
[1718882018096,17.7441,140.9,140.81,7.1014]
[1718882018284,17.7441,140.9,140.81,7.1017]
[1718882018583,7.0996,140.86,140.81,7.1017]
[1718882018790,7.0988,140.87,140.82,7.1011]
[1718882018993,7.0988,140.87,140.81,7.1015]
[1718882019161,7.0988,140.87,140.82,7.1011]
[1718882019362,17.7441,140.9,140.78,17.7574]
[1718882019591,17.7441,140.9,140.83,7.1005]
[1718882019784,7.0985,140.88,140.83,7.1005]
[1718882020095,7.0985,140.88,140.82,7.101]
[1718882020395,7.0989,140.87,140.82,7.101]
[1718882020971,17.7441,140.9,140.8,17.7553]
[1718882021280,17.7441,140.9,140.77,17.7583]
[1718882021485,17.7441,140.9,140.82,7.101]
[1718882021682,22.1628,140.91,140.76,57.6819]
[1718882021683,7.0979,140.89,140.76,57.6819]
[1718882021886,7.0982,140.88,140.83,7.1005]
[1718882022090,22.1628,140.91,140.84,7.1001]
[1718882022091,7.0978,140.89,140.84,7.1001]
[1718882022691,22.1628,140.91,140.81,17.7542]
[1718882022876,7.0976,140.9,140.85,7.0994]
[1718882023081,22.1628,140.91,140.84,7.1001]
[1718882023489,22.1628,140.91,140.85,7.0996]
[1718882023689,7.0975,140.9,140.85,7.0996]
[1718882024080,29.2596,140.91,140.86,7.0991]
[1718882024279,22.1628,140.91,140.81,0.17]
[1718882024493,22.1628,140.91,140.88,7.0981]
[1718882024799,22.1628,140.91,140.87,7.0987]
[1718882025581,22.1628,140.91,140.81,17.9231]
[1718882025890,22.1628,140.91,140.85,7.0993]
[1718882026300,7.0994,140.86,140.81,7.1013]
[1718882026480,17.7456,140.88,140.78,17.7572]
[1718882026481,7.0985,140.88,140.78,17.7572]
[1718882026689,7.0985,140.88,140.83,7.1006]
[1718882026690,7.0984,140.88,140.83,7.1006]
[1718882026897,7.0982,140.89,140.84,7.1002]
[1718882027099,22.1628,140.91,140.81,17.7531]
[1718882027397,7.0993,140.86,140.81,7.1014]
[1718882027581,7.0986,140.88,140.83,7.1007]
[1718882027783,6.1336,140.87,140.72,6.2974]
[1718882028004,17.7483,140.86,140.76,17.7604]
[1718882028183,7.1003,140.84,140.79,7.1024]
[1718882028394,7.1,140.85,140.8,7.1021]
[1718882028606,7.1003,140.84,140.79,7.1027]
[1718882029609,15.7775,140.85,140.76,17.7604]
[1718882029881,7.1014,140.82,140.77,7.1036]
[1718882030282,15.7775,140.85,140.72,24.0437]
[1718882030483,7.1008,140.83,140.77,7.1037]
[1718882030786,33.528,140.85,140.79,7.1027]
[1718882030787,7.1005,140.84,140.79,7.1027]
[1718882030982,15.7775,140.85,140.72,57.6043]
[1718882031186,15.7775,140.85,140.82,7.1009]
[1718882031487,6.5921,140.95,140.82,6.397]
[1718882031693,7.0958,140.93,140.85,17.7491]
[1718882032002,6.5921,140.95,140.85,17.7491]
[1718882032003,7.0953,140.94,140.89,7.0977]
[1718882032188,6.5921,140.95,140.85,17.7491]
[1718882032189,6.5921,140.95,140.88,7.0981]
[1718882032505,13.6869,140.95,140.89,7.0976]
[1718882032712,6.5921,140.95,140.87,17.7466]
[1718882032904,6.5921,140.95,140.91,7.0963]
[1718882033223,6.5921,140.95,140.9,7.097]
[1718882033385,7.0952,140.94,140.86,0.17]
[1718882033587,7.0953,140.94,140.84,17.7496]
[1718882033790,7.0953,140.94,140.88,7.0981]
[1718882033996,7.0958,140.93,140.88,7.0981]
[1718882034217,6.5921,140.95,140.88,7.0981]
[1718882034595,6.5921,140.95,140.86,17.7477]
[1718882034793,6.5921,140.95,140.9,7.097]
[1718882035621,13.6869,140.95,140.9,7.097]
[1718882036322,17.738,140.94,140.83,17.751]
[1718882036495,7.0969,140.91,140.83,17.751]
[1718882036852,7.0963,140.92,140.86,7.0989]
[1718882037024,17.738,140.94,140.84,7.1]
[1718882037193,17.738,140.94,140.85,7.0995]
[1718882037392,7.0967,140.91,140.85,7.0995]
[1718882037798,7.0967,140.91,140.86,7.099]
[1718882038298,7.0963,140.92,140.87,7.0986]
[1718882038613,17.738,140.94,140.89,7.0974]
[1718882038614,7.0956,140.94,140.89,7.0974]
[1718882038820,6.5921,140.95,140.9,7.0971]
[1718882039001,6.5921,140.95,140.81,35.5065]
[1718882039002,6.5921,140.95,140.81,65.2365]
[1718882039210,6.5921,140.95,140.91,7.0965]
[1718882039413,13.6868,140.95,140.9,7.097]
[1718882039597,13.6868,140.95,140.89,7.0975]
[1718882039803,7.0952,140.94,140.89,7.0975]
[1718882040219,7.0964,140.92,140.87,7.0984]
[1718882040424,6.5921,140.95,140.87,7.0984]
[1718882040602,6.5921,140.95,140.85,7.0992]
[1718882040807,7.0983,140.88,140.82,2.52837363]
[1718882041020,6.5921,140.95,140.84,7.1002]
[1718882041216,7.0978,140.89,140.84,7.1002]
[1718882041608,7.0975,140.9,140.85,7.0996]
[1718882041815,7.0975,140.9,140.8,17.7544]
[1718882041816,7.0975,140.9,140.84,7.1]
[1718882042011,17.7409,140.92,140.83,7.1005]
[1718882042197,7.0988,140.87,140.82,7.1009]
[1718882042397,7.0984,140.88,140.83,7.1007]
[1718882042620,7.0988,140.87,140.82,7.101]
[1718882042804,6.5921,140.95,140.8,35.5094]
[1718882043123,6.5921,140.95,140.88,7.0978]
[1718882043325,6.5921,140.95,140.81,2.52855319]
[1718882043326,17.7383,140.94,140.82,17.7519]
[1718882043503,7.0958,140.93,140.88,7.0978]
[1718882043703,6.5921,140.95,140.82,17.7341]
[1718882043704,7.0953,140.94,140.89,7.0977]
[1718882044227,7.0953,140.94,140.84,17.7504]
[1718882044228,6.5921,140.95,140.84,17.7504]
[1718882044436,6.5921,140.95,140.86,17.7479]
[1718882044591,6.5921,140.95,140.84,0.17]
[1718882044910,6.5921,140.95,140.89,17.7442]
[1718882045103,16.2629,140.96,140.89,17.7442]
[1718882045420,29.73,141.04,140.88,0.17]
[1718882045421,6.3413,141.03,140.88,0.17]
[1718882045726,7.0941,140.97,140.91,7.0965]
[1718882045926,7.0933,140.98,140.92,7.096]
[1718882046092,17.7296,141.01,140.88,17.9146]
[1718882046297,17.7296,141.01,140.9,17.7429]
[1718882046526,7.0935,140.98,140.93,7.0952]
[1718882046825,22.3093,140.96,140.9,7.0968]
[1718882047330,22.3093,140.96,140.87,17.7457]
[1718882047331,6.5597,140.95,140.84,53.2493]
[1718882047491,7.0967,140.92,140.87,7.0985]
[1718882047695,7.0966,140.92,140.86,7.099]
[1718882047896,7.0966,140.92,140.87,7.0986]
[1718882048116,6.5597,140.95,140.9,7.097]
[1718882048546,6.5597,140.95,140.91,7.0965]
[1718882049226,6.5597,140.95,140.9,7.097]
[1718882049419,6.5597,140.95,140.88,17.7455]
[1718882049616,7.0933,140.98,140.93,7.0956]
[1718882049831,13.5672,140.99,140.94,7.0952]
[1718882050429,6.4744,140.99,140.9,17.7428]
[1718882050843,6.4744,140.99,140.93,7.0953]
[1718882051026,13.5675,140.99,140.93,7.0953]
[1718882051228,13.5675,140.99,140.94,7.095]
[1718882051648,13.5675,140.99,140.95,7.0946]
[1718882051649,6.4744,140.99,140.95,7.0946]
[1718882051946,7.0927,140.99,140.94,7.095]
[1718882052124,16.4464,141.01,140.91,0.17]
[1718882052453,7.0933,140.98,140.91,0.17]
[1718882052748,17.7305,141.0,140.89,0.34]
[1718882052945,7.0957,140.93,140.85,6.0059]
[1718882053117,7.0954,140.94,140.89,7.0977]
[1718882053316,17.7331,140.98,140.9,7.097]
[1718882053516,16.4464,141.01,140.93,7.0955]
[1718882053517,34.1767,141.01,140.93,7.0955]
[1718882053826,7.0931,140.99,140.94,7.0949]
[1718882054022,7.0922,141.0,140.95,7.0946]
[1718882054533,7.0922,141.0,140.94,7.095]
[1718882054743,7.0931,140.99,140.94,7.095]
[1718882055041,7.0937,140.97,140.92,7.0957]
[1718882055226,16.4464,141.01,140.93,7.0955]
[1718882055544,16.4464,141.01,140.85,6.0059]
[1718882055545,6.3934,141.0,140.85,6.0059]
[1718882055763,17.7357,140.96,140.87,7.0984]
[1718882056050,7.0967,140.92,140.87,7.0986]
[1718882056226,17.7382,140.94,140.83,15.8543]
[1718882056227,7.097,140.91,140.84,17.7504]
[1718882056429,7.0948,140.95,140.9,7.0968]
[1718882056628,6.2234,141.0,140.83,15.8543]
[1718882056854,7.0928,140.99,140.84,2.52801459]
[1718882057049,13.3159,141.0,140.94,7.0949]
[1718882057248,7.0927,140.99,140.94,7.0949]
[1718882057453,13.3156,141.0,140.95,7.0946]
[1718882057629,7.0922,141.0,140.95,7.0946]
[1718882057837,23.5382,141.01,140.96,7.0941]
[1718882058331,7.0933,140.98,140.93,7.0956]
[1718882058528,7.093,140.99,140.94,7.0951]
[1718882058749,17.7314,141.0,140.89,6.0099]
[1718882058955,7.0937,140.97,140.92,7.0958]
[1718882059151,53.1834,141.03,140.89,6.0099]
[1718882059324,7.0932,140.98,140.93,7.0955]
[1718882059724,7.0938,140.97,140.92,7.096]
[1718882059941,0.17,141.0,140.89,6.0099]
[1718882060145,17.7295,141.01,140.89,6.0099]
[1718882060354,17.7267,141.03,140.89,6.0099]
[1718882060547,7.0933,140.98,140.93,7.0953]
[1718882060732,7.0929,140.99,140.93,7.0953]
[1718882061123,7.0929,140.99,140.94,7.0951]
[1718882061337,17.7305,141.0,140.92,7.0957]
[1718882061536,7.094,140.97,140.92,7.0957]
[1718882061932,7.0933,140.98,140.93,7.0956]
[1718882062152,17.7355,140.96,140.85,6.6156]
[1718882062454,6.2613,140.94,140.85,17.7482]
[1718882063038,6.2613,140.94,140.87,17.7461]
[1718882063235,7.0939,140.97,140.84,2.52801459]
[1718882063438,13.3547,140.98,140.93,7.0956]
[1718882063655,29.2057,140.99,140.93,7.0953]
[1718882063957,22.1127,140.99,140.91,17.7417]
[1718882064141,29.2057,140.99,140.94,7.0949]
[1718882065873,7.0939,140.97,140.92,7.096]
[1718882066244,7.0944,140.96,140.9,7.0967]
[1718882066543,7.0948,140.95,140.87,17.7467]
[1718882066733,7.0952,140.94,140.89,7.0973]
[1718882066938,7.0956,140.94,140.87,17.7467]
[1718882067248,17.7344,140.97,140.83,20.0]
[1718882067451,22.1127,140.99,140.85,35.4974]
[1718882067751,7.0945,140.96,140.91,7.0963]
[1718882067954,17.733,140.98,140.86,17.7481]
[1718882068259,7.095,140.95,140.9,7.0972]
[1718882068461,7.0951,140.95,140.9,7.0971]
[1718882068833,17.7355,140.96,140.88,7.0977]
[1718882069036,7.0943,140.96,140.91,7.0967]
[1718882069236,22.1127,140.99,140.88,17.7448]
[1718882069437,7.0935,140.98,140.93,7.0957]
[1718882070362,39.8456,140.99,140.86,17.7469]
[1718882070541,7.0957,140.93,140.88,7.098]
[1718882070949,7.0954,140.94,140.89,7.0976]
[1718882071146,17.7347,140.97,140.86,17.7469]
[1718882071348,17.7347,140.97,140.84,55.77831459]
[1718882071548,7.0962,140.92,140.87,7.0984]
[1718882071945,17.7367,140.96,140.84,20.27851459]
[1718882072146,7.0963,140.92,140.87,7.0986]
[1718882072560,7.0968,140.91,140.86,7.0991]
[1718882072771,7.0973,140.9,140.85,7.0994]
[1718882072946,13.3696,140.91,140.86,7.0992]
[1718882073369,6.2727,140.91,140.87,7.0987]
[1718882073548,6.2727,140.91,140.84,20.27851459]
[1718882073752,6.2727,140.91,140.87,7.0986]
[1718882074059,6.2727,140.91,140.88,7.0982]
[1718882074258,6.2727,140.91,140.87,7.0986]
[1718882074467,6.2727,140.91,140.88,7.0982]
[1718882074965,15.8735,140.93,140.9,7.0972]
[1718882075151,15.8735,140.93,140.91,7.0966]
[1718882075351,15.8735,140.93,140.9,7.097]
[1718882075541,6.3695,140.95,140.89,17.7442]
[1718882075742,15.2691,140.97,140.89,17.7442]
[1718882076056,6.3413,140.99,140.98,7.0932]
[1718882076262,6.3413,140.99,140.97,7.0935]
[1718882076459,6.3413,140.99,140.96,7.0941]
[1718882076656,6.3413,140.99,140.95,7.0945]
[1718882076858,6.3413,140.99,140.91,17.7406]
[1718882076859,23.5292,141.01,140.96,7.0941]
[1718882077170,23.5292,141.01,140.97,7.0935]
[1718882077171,16.4371,141.01,140.97,7.0935]
[1718882078773,13.6451,141.02,140.97,7.0935]
[1718882078953,15.4165,141.05,141.0,7.0917]
[1718882079157,22.5061,141.05,141.0,7.092]
[1718882079346,22.5061,141.05,140.98,7.093]
[1718882079347,7.0904,141.04,140.98,7.093]
[1718882079545,22.5062,141.05,140.99,7.0926]
[1718882079966,7.0902,141.04,140.99,7.0926]
[1718882080168,7.0902,141.04,140.98,7.0927]
[1718882080363,7.0902,141.04,140.96,17.7354]
[1718882080364,22.5062,141.05,140.96,17.7354]
[1718882080569,22.5062,141.05,140.97,0.34]
[1718882080979,22.5062,141.05,140.96,17.7354]
[1718882080980,15.4165,141.05,140.96,17.7354]
[1718882081265,7.0916,141.02,140.96,7.0938]
[1718882081452,7.0913,141.02,140.94,17.738]
[1718882081645,15.4165,141.05,140.97,7.0933]
[1718882081845,7.0913,141.02,140.97,7.0934]
[1718882082042,15.4165,141.05,140.9,17.7231]
[1718882082249,15.4165,141.05,140.91,20.0]
[1718882082665,0.17,141.04,140.9,17.7231]
[1718882082876,7.0936,140.98,140.92,7.0961]
[1718882083172,6.5581,141.03,140.88,35.4887]
[1718882083369,7.0922,141.0,140.95,7.0945]
[1718882083756,7.0922,141.0,140.95,7.0943]
[1718882083961,7.0922,141.0,140.93,17.7385]
[1718882083962,24.2848,141.03,140.93,17.7385]
[1718882084155,7.092,141.01,140.96,7.0941]
[1718882084572,7.0923,141.0,140.95,7.0945]
[1718882084755,7.0918,141.01,140.96,7.0941]
[1718882084949,7.0922,141.0,140.95,7.0946]
[1718882085971,7.0922,141.0,140.94,7.095]
[1718882086177,7.0922,141.0,140.95,7.0946]
[1718882086554,7.093,140.99,140.92,17.7401]
[1718882086772,7.093,140.99,140.94,7.0949]
[1718882087478,7.0932,140.98,140.93,7.0955]
[1718882087667,7.0927,140.99,140.94,7.0948]
[1718882087973,17.7293,141.01,140.9,17.743]
[1718882088282,7.0931,140.99,140.94,7.0947]
[1718882088870,6.5581,141.03,140.93,17.7385]
[1718882089072,7.0914,141.02,140.97,7.0933]
[1718882089453,6.5581,141.03,140.99,7.0923]
[1718882090266,13.6488,141.03,140.98,7.0929]
[1718882090450,6.5581,141.03,140.99,7.0926]
[1718882090655,6.5581,141.03,140.97,7.0933]
[1718882090854,7.0913,141.02,140.97,7.0933]
[1718882091085,6.5581,141.03,140.95,17.7366]
[1718882091279,7.0914,141.02,140.97,7.0932]
[1718882091784,6.5581,141.03,140.87,41.6765]
[1718882091982,7.0932,140.98,140.9,17.7429]
[1718882092158,6.5581,141.03,140.87,6.1839]
[1718882092364,17.7307,141.0,140.89,17.7441]
[1718882092570,7.0932,140.98,140.93,7.0952]
[1718882092883,6.5581,141.03,140.88,20.0]
[1718882092884,24.286,141.03,140.88,20.0]
[1718882093089,24.286,141.03,140.95,7.0946]
[1718882093389,7.0918,141.01,140.96,7.094]
[1718882093569,7.0923,141.0,140.95,7.0944]
[1718882094086,7.0917,141.01,140.96,7.0939]
[1718882094495,7.0917,141.01,140.97,7.0936]
[1718882094688,24.2848,141.03,140.92,17.7393]
[1718882095071,7.0932,140.98,140.93,7.0955]
[1718882095284,0.17,141.02,140.9,17.7429]
[1718882095468,7.0923,141.0,140.95,7.0946]
[1718882095672,6.5581,141.03,140.92,17.7402]
[1718882096087,7.092,141.01,140.96,7.0942]
[1718882096391,6.5581,141.03,140.94,7.095]
[1718882096392,0.17,141.02,140.94,7.095]
[1718882096565,7.0937,140.97,140.92,7.096]
[1718882096765,7.0934,140.98,140.93,7.0956]
[1718882096968,7.0927,140.99,140.94,7.0951]
[1718882097359,7.0921,141.01,140.96,7.0941]
[1718882098968,7.0921,141.01,140.97,7.0936]
[1718882099186,7.0912,141.02,140.94,17.7378]
[1718882099379,7.0917,141.01,140.94,17.7378]
[1718882099981,13.6491,141.03,140.98,7.093]
[1718882100183,7.0934,140.98,140.93,7.0952]
[1718882100486,17.7293,141.01,140.94,7.0949]
[1718882100789,7.0937,140.97,140.92,7.096]
[1718882100998,7.0932,140.98,140.93,7.0953]
[1718882101178,6.5581,141.03,140.88,35.4888]
[1718882101374,6.5581,141.03,140.92,17.74]
[1718882101787,7.0917,141.01,140.92,17.74]
[1718882101981,6.5581,141.03,140.99,7.0926]
[1718882102287,6.5581,141.03,140.99,7.0923]
[1718882102484,6.5581,141.03,140.96,17.7353]
[1718882102686,22.5063,141.05,141.0,7.0917]
[1718882102996,15.4165,141.05,140.98,7.0928]
[1718882103195,15.4165,141.05,141.0,7.0921]
[1718882103377,7.0905,141.04,140.99,7.0924]
[1718882103571,15.4165,141.05,140.98,7.093]
[1718882103572,7.0907,141.03,140.98,7.093]
[1718882104078,15.4165,141.05,140.96,17.7353]
[1718882104472,7.0892,141.06,141.01,7.0912]
[1718882104677,13.2581,141.07,141.02,7.091]
[1718882105406,6.1694,141.07,140.95,17.7367]
[1718882105696,15.2402,141.01,140.9,22.699]
[1718882105866,7.0923,141.0,140.95,7.0945]
[1718882106070,22.332,141.01,140.95,7.0945]
[1718882106472,15.2402,141.01,140.9,22.699]
[1718882106790,15.2402,141.01,140.87,17.7293]
[1718882106791,6.2449,140.99,140.87,17.7293]
[1718882107091,6.2449,140.99,140.82,22.4905]
[1718882107092,0.17,140.98,140.82,22.4905]
[1718882107298,17.7356,140.96,140.87,7.0985]
[1718882107506,7.0959,140.93,140.87,7.0985]
[1718882107712,17.7384,140.94,140.83,17.7514]
[1718882107876,6.0743,140.93,140.83,7.1006]
[1718882108201,17.7412,140.92,140.8,46.198625]
[1718882108498,7.0977,140.89,140.8,17.7547]
[1718882108706,16.3781,140.87,140.77,15.1107]
[1718882108876,16.3781,140.87,140.76,35.5017]
[1718882109192,16.3781,140.87,140.81,7.1016]
[1718882109193,23.4769,140.87,140.81,7.1016]
[1718882109589,16.3781,140.87,140.79,7.1023]
[1718882109795,7.0997,140.85,140.75,35.5191]
[1718882109975,7.1001,140.85,140.79,7.1026]
[1718882110177,6.3624,140.86,140.8,7.1022]
[1718882110401,6.3624,140.86,140.77,7.1033]
[1718882110402,7.1009,140.83,140.77,7.1033]
[1718882110578,0.17,140.85,140.75,7.1047]
[1718882110780,0.34,140.85,140.73,7.1057]
[1718882110978,0.34,140.85,140.69,17.7689]
[1718882111201,7.1028,140.79,140.73,7.1057]
[1718882111516,7.1033,140.78,140.73,7.1056]
[1718882111811,7.1033,140.78,140.7,17.7449]
[1718882111812,16.5587,140.78,140.7,17.7449]
[1718882111974,16.5587,140.78,140.7,7.1072]
[1718882112171,16.5587,140.78,140.64,34.4088]
[1718882112382,7.1064,140.72,140.66,7.1092]
[1718882112584,7.1073,140.71,140.63,16.5587]
[1718882112771,7.1083,140.68,140.58,17.7824]
[1718882113299,7.1083,140.68,140.62,7.1112]
[1718882113876,13.6327,140.69,140.62,7.1112]
[1718882114110,13.6327,140.69,140.57,17.7674]
[1718882114111,6.5248,140.69,140.57,17.7674]
[1718882114283,7.1097,140.66,140.6,7.1123]
[1718882114615,33.4082,140.68,140.6,7.1123]
[1718882114780,15.6371,140.68,140.63,7.1108]
[1718882115101,15.6371,140.68,140.62,7.1109]
[1718882115306,15.6371,140.68,140.61,17.779]
[1718882115606,22.5534,140.74,140.65,17.7737]
[1718882115907,22.5534,140.74,140.7,7.1072]
[1718882116077,22.5534,140.74,140.61,29.77]
[1718882116276,22.5534,140.74,140.68,7.1081]
[1718882116482,22.5534,140.74,140.69,7.1077]
[1718882116684,7.1052,140.75,140.69,7.1077]
[1718882116987,7.1038,140.77,140.71,7.1068]
[1718882117191,6.6249,140.79,140.69,17.7688]
[1718882117585,6.6249,140.79,140.72,7.1062]
[1718882117586,7.1037,140.78,140.72,7.1062]
[1718882117783,6.6249,140.79,140.74,7.1052]
[1718882117989,6.6249,140.79,140.75,7.1046]
[1718882118207,7.1018,140.81,140.76,7.1041]
[1718882118417,172.3625472,140.82,140.76,7.1041]
[1718882118577,172.3625472,140.82,140.76,7.1039]
[1718882118781,7.1018,140.81,140.75,7.1044]
[1718882118999,165.2611472,140.82,140.53,24.2034]
[1718882119000,22.0892,140.79,140.53,24.2034]
[1718882119311,200.7685472,140.82,140.42,6.4346]
[1718882119312,10.69406761,140.58,140.42,6.4346]
[1718882119606,6.425,140.65,140.5,29.77]
[1718882119812,6.425,140.65,140.42,36.2046]
[1718882119813,6.425,140.65,140.49,39.749991]
[1718882119991,7.1083,140.69,140.56,17.7855]
[1718882120187,0.17,140.7,140.54,29.77]
[1718882120515,6.6509,140.71,140.56,17.7851]
[1718882120713,17.769,140.7,140.6,7.1122]
[1718882120885,22.3151,140.71,140.51,2.53395185]
[1718882121085,6.6509,140.71,140.59,7.1124]
[1718882121412,7.1088,140.67,140.6,7.1123]
[1718882121910,7.1095,140.66,140.6,7.1121]
[1718882122082,6.6509,140.71,140.63,7.1106]
[1718882122287,7.1092,140.67,140.6,7.1122]
[1718882122612,6.6509,140.71,140.61,0.34]
[1718882122994,6.6509,140.71,140.57,17.7844]
[1718882123200,7.1075,140.7,140.64,7.1102]
[1718882123511,7.1078,140.69,140.59,17.7813]
[1718882123717,7.1078,140.69,140.6,0.34]
[1718882123907,7.1078,140.69,140.62,7.1112]
[1718882124115,7.1084,140.68,140.62,7.1112]
[1718882124634,6.6509,140.71,140.59,7.1127]
[1718882124838,7.1103,140.64,140.5,35.5858]
[1718882125121,17.7699,140.69,140.59,7.1128]
[1718882125327,7.1093,140.66,140.6,7.1122]
[1718882125494,7.1099,140.65,140.59,7.1128]
[1718882125703,7.1087,140.68,140.62,7.1109]
[1718882125924,7.1084,140.68,140.62,7.1113]
[1718882126227,7.1088,140.67,140.61,7.1117]
[1718882126398,7.1107,140.64,140.58,7.1129]
[1718882126722,7.1116,140.62,140.56,7.114]
[1718882127095,7.1134,140.58,140.5,17.7933]
[1718882127307,17.7792,140.62,140.54,7.1153]
[1718882127503,17.7792,140.62,140.53,7.1155]
[1718882127504,7.1131,140.59,140.53,7.1155]
[1718882127707,7.1143,140.57,140.5,7.117]
[1718882127895,7.1142,140.57,140.51,7.1167]
[1718882128097,7.1132,140.59,140.49,17.7945]
[1718882128523,7.1134,140.58,140.49,17.7945]
[1718882129111,21.6952,140.62,140.51,17.7913]
[1718882129310,7.1099,140.65,140.6,7.1123]
[1718882129520,164.8811472,140.67,140.55,17.7869]
[1718882129723,21.6952,140.68,140.61,7.1117]
[1718882129919,21.6952,140.68,140.57,17.7845]
[1718882130099,21.6952,140.68,140.6,7.1122]
[1718882130100,7.1097,140.66,140.6,7.1122]
[1718882130301,21.6952,140.68,140.6,7.1122]
[1718882130505,21.6952,140.68,140.52,29.77]
[1718882130804,21.6952,140.68,140.46,9.979991]
[1718882130805,17.2003,140.64,140.46,9.979991]
[1718882130999,17.2003,140.64,140.5,20.0]
[1718882131231,17.2003,140.64,140.52,17.7905]
[1718882131403,7.1127,140.6,140.55,7.1147]
[1718882131605,7.112,140.61,140.55,7.1147]
[1718882131920,17.2003,140.64,140.49,47.5636]
[1718882132222,35.5464,140.67,140.51,35.5824]
[1718882132223,17.7731,140.67,140.51,35.5824]
[1718882132523,7.1104,140.64,140.52,20.17]
[1718882132892,35.5465,140.67,140.49,29.77]
[1718882133098,7.1124,140.6,140.54,7.1152]
[1718882133512,35.5465,140.67,140.52,17.7909]
[1718882133513,17.7735,140.66,140.52,17.7909]
[1718882133734,7.1116,140.62,140.56,7.1142]
[1718882133898,7.1109,140.63,140.57,7.1138]
[1718882134098,21.6952,140.68,140.49,51.12]
[1718882134298,21.6952,140.68,140.59,7.1127]
[1718882134299,7.1104,140.64,140.59,7.1127]
[1718882134517,17.7724,140.67,140.56,17.785]
[1718882134722,21.6952,140.68,140.57,0.17]
[1718882134914,21.6952,140.68,140.58,7.1132]
[1718882135099,7.1103,140.65,140.59,7.1128]
[1718882135295,7.1108,140.63,140.58,7.1132]
[1718882135500,7.1104,140.64,140.58,7.1132]
[1718882135712,7.1104,140.64,140.59,7.1127]
[1718882136124,21.6952,140.68,140.57,17.9543]
[1718882136330,6.0231,140.68,140.58,0.51]
[1718882136531,22.3799,140.74,140.58,0.51]
[1718882136828,22.3799,140.74,140.64,0.17]
[1718882136829,6.4615,140.74,140.64,0.17]
[1718882137027,7.1064,140.72,140.66,7.1089]
[1718882137331,7.1058,140.73,140.67,7.1084]
[1718882137530,6.4615,140.74,140.68,7.1082]
[1718882137837,13.5668,140.74,140.65,17.7744]
[1718882138131,6.4615,140.74,140.69,7.1077]